fUSD/lending_fUSD_20250905
["ID","MTS","AMOUNT","RATE_DAILY","PERIOD"]
[383626363,1757045471969,-400.0,0.00026575,2]
[383626364,1757045471980,-168.0,0.00026576,2]
[383626365,1757045471992,-168.0,0.00026582,2]
[383626366,1757045472003,-150.0,0.00026586,2]
[383626367,1757045472013,-150.0,0.00026586,2]
[383626368,1757045472023,-150.0,0.00026586,2]
[383626369,1757045472033,-150.0,0.00026586,2]
[383626370,1757045472042,-150.0,0.00026586,2]
[383626371,1757045472052,-150.0,0.00026586,2]
[383626372,1757045472062,-150.0,0.00026586,2]
[383626373,1757045472072,-150.0,0.00026586,2]
[383626374,1757045472082,-150.0,0.00026586,2]
[383626375,1757045472091,-150.0,0.00026586,2]
[383626376,1757045472101,-150.0,0.00026586,2]
[383626377,1757045472111,-150.0,0.00026586,2]
[383626378,1757045472120,-243.775,0.00026586,2]
[383626379,1757045472129,-150.99,0.00026591,2]
[383626380,1757045472138,-428.85,0.00026591,2]
[383626381,1757045472147,-1003.73444664,0.00026616,2]
[383626382,1757045472157,-500.0,0.0002664,14]
[383626383,1757045472167,-468.65751276,0.0002664,14]
[383626384,1757045472177,-152.12770927,0.00026673,2]
[383626385,1757045472187,-277.35679052,0.0002669,2]
[383626386,1757045472197,-500.0,0.00026699,2]
[383626387,1757045472207,-500.0,0.00026699,2]
[383626388,1757045472217,-85850.15,0.000267,7]
[383626389,1757045472227,-3010.69135387,0.000267,7]
[383626390,1757045472238,-400.0,0.00026716,2]
[383626391,1757045472248,-471.37692998,0.00026716,2]
[383626392,1757045472258,-264.10974106,0.00026716,2]
[383626393,1757045472268,-400.0,0.00026716,2]
[383626394,1757045472278,-400.0,0.00026716,2]
[383626395,1757045472288,-400.0,0.00026716,2]
[383626396,1757045472299,-400.0,0.00026716,2]
[383626397,1757045472309,-400.0,0.00026716,2]
[383626398,1757045472320,-400.0,0.00026716,2]
[383626399,1757045472487,-275.11633123,0.00026716,2]
[383626400,1757045472497,-530.0016931,0.00026716,2]
[383626401,1757045472507,-400.0,0.00026716,2]
[383626402,1757045472517,-400.0,0.00026716,2]
[383626403,1757045472527,-400.0,0.00026716,2]
[383626404,1757045472536,-151.21320987,0.00026716,2]
[383626405,1757045472546,-400.0,0.00026716,2]
[383626406,1757045472556,-400.0,0.00026716,2]
[383626407,1757045472570,-400.0,0.00026716,2]
[383626408,1757045472580,-400.0,0.00026716,2]
[383626409,1757045472590,-400.0,0.00026716,2]
[383626410,1757045472599,-400.0,0.00026716,2]
[383626411,1757045472609,-400.0,0.00026716,2]
[383626412,1757045472619,-400.0,0.00026716,2]
[383626413,1757045472629,-400.0,0.00026716,2]
[383626414,1757045472638,-400.0,0.00026716,2]
[383626415,1757045472648,-400.0,0.00026716,2]
[383626416,1757045472658,-400.0,0.00026716,2]
[383626417,1757045472669,-400.0,0.00026716,2]
[383626418,1757045472678,-400.0,0.00026716,2]
[383626419,1757045472688,-400.0,0.00026716,2]
[383626420,1757045472698,-400.0,0.00026716,2]
[383626421,1757045472708,-400.0,0.00026716,2]
[383626422,1757045472718,-406.11213097,0.00026716,2]
[383626423,1757045472738,-226.81886127,0.00026716,2]
[383626424,1757045472748,-400.0,0.00026716,2]
[383626425,1757045472758,-400.0,0.00026716,2]
[383626426,1757045472768,-185.81309381,0.00026716,2]
[383626427,1757045472778,-429.58895591,0.00026716,2]
[383626428,1757045472788,-400.0,0.00026716,2]
[383626429,1757045472799,-179.36358404,0.00026716,2]
[383626430,1757045472808,-400.0,0.00026716,2]
[383626431,1757045472819,-376.29059216,0.00026716,2]
[383626432,1757045472829,-400.0,0.00026716,2]
[383626433,1757045472839,-400.0,0.00026716,2]
[383626434,1757045472848,-400.0,0.00026716,2]
[383626435,1757045472858,-400.0,0.00026716,2]
[383626436,1757045472868,-400.0,0.00026716,2]
[383626437,1757045472878,-434.59,0.00026716,2]
[383626438,1757045472888,-400.0,0.00026716,2]
[383626439,1757045472898,-400.0,0.00026716,2]
[383626440,1757045472909,-400.0,0.00026716,2]
[383626441,1757045472919,-400.0,0.00026716,2]
[383626442,1757045472930,-400.0,0.00026815,2]
[383626443,1757045472940,-400.0,0.00026815,2]
[383626444,1757045472950,-493.37364427,0.00026815,2]
[383626445,1757045472959,-400.0,0.00026815,2]
[383626446,1757045472970,-400.0,0.00026815,2]
[383626447,1757045472979,-490.72,0.00026815,2]
[383626448,1757045472990,-400.0,0.00026815,2]
[383626449,1757045473000,-400.0,0.00026815,2]
[383626450,1757045473010,-400.0,0.00026815,2]
[383626451,1757045473019,-298.16494036,0.00026815,2]
[383626452,1757045473030,-152.31598987,0.00026815,2]
[383626453,1757045473040,-400.0,0.00026815,2]
[383626454,1757045473049,-400.0,0.00026815,2]
[383626455,1757045473059,-400.0,0.00026815,2]
[383626456,1757045473069,-1135.87,0.00026815,2]
[383626457,1757045473079,-400.0,0.00026815,2]
[383626458,1757045473089,-553.22,0.00026815,2]
[383626459,1757045473099,-400.0,0.00026815,2]
[383626460,1757045473111,-400.0,0.00026815,2]
[383626461,1757045473126,-400.0,0.00026815,2]
[383626462,1757045473137,-659.02,0.00026815,2]
[383626463,1757045473146,-693.59,0.00026815,2]
[383626464,1757045473156,-1013.01,0.00026815,2]
[383626465,1757045473166,-400.0,0.00026815,2]
[383626466,1757045473176,-400.0,0.00026815,2]
[383626467,1757045473187,-4163.0,0.00026815,2]
[383626468,1757045473197,-21153.0,0.00026815,2]
[383626469,1757045473208,-33481.41935949,0.00026826,3]
[383626470,1757045473218,-400.0,0.00026826,2]
[383626471,1757045473228,-400.0,0.00026826,2]
[383626472,1757045473238,-400.0,0.00026826,2]
[383626473,1757045473248,-400.0,0.00026826,2]
[383626474,1757045473258,-400.0,0.00026848,2]
[383626475,1757045473268,-400.0,0.00026848,2]
[383626476,1757045473278,-2614.78,0.00026848,2]
[383626477,1757045473288,-400.0,0.00026848,2]
[383626478,1757045473297,-400.0,0.00026848,2]
[383626479,1757045473308,-400.0,0.00026849,2]
[383626480,1757045473319,-400.0,0.00026849,2]
[383626481,1757045473331,-400.0,0.00026849,2]
[383626482,1757045473341,-400.0,0.00026849,2]
[383626483,1757045473352,-400.0,0.00026849,2]
[383626484,1757045473366,-408.49000924,0.00026849,2]
[383626485,1757045473375,-400.0,0.00026849,2]
[383626486,1757045473384,-272.93143856,0.00026849,2]
[383626487,1757045473394,-400.0,0.00026849,2]
[383626488,1757045473404,-400.0,0.00026849,2]
[383626489,1757045473414,-400.0,0.00026849,2]
[383626490,1757045473425,-193.96136292,0.00026849,2]
[383626491,1757045473436,-400.0,0.00026849,2]
[383626492,1757045473448,-400.0,0.00026849,2]
[383626493,1757045473458,-400.0,0.00026849,2]
[383626494,1757045473469,-400.0,0.00026849,2]
[383626495,1757045473482,-577.81,0.00026849,2]
[383626496,1757045473493,-1340.23,0.00026849,2]
[383626497,1757045473505,-400.0,0.00026849,2]
[383626498,1757045473515,-828.84,0.00026849,2]
[383626499,1757045473525,-400.0,0.00026849,2]
[383626500,1757045473536,-1218.03,0.00026849,2]
[383626501,1757045473546,-701.33,0.00026849,2]
[383626502,1757045473556,-400.0,0.00026849,2]
[383626503,1757045473573,-400.0,0.00026849,2]
[383626504,1757045473585,-400.0,0.00026849,2]
[383626505,1757045473596,-400.0,0.00026849,2]
[383626506,1757045473607,-400.0,0.00026849,2]
[383626507,1757045473617,-400.0,0.00026849,2]
[383626508,1757045473627,-400.0,0.00026849,2]
[383626509,1757045473638,-400.0,0.00026849,2]
[383626510,1757045473648,-400.0,0.00026849,2]
[383626511,1757045473659,-400.0,0.00026849,2]
[383626512,1757045473669,-400.0,0.00026849,2]
[383626513,1757045473680,-400.0,0.00026849,2]
[383626514,1757045473690,-400.0,0.00026849,2]
[383626515,1757045473700,-424.56,0.00026849,2]
[383626516,1757045473710,-484.00081438,0.00026849,2]
[383626517,1757045473720,-400.0,0.00026849,2]
[383626518,1757045473731,-400.0,0.00026849,2]
[383626519,1757045473741,-400.0,0.00026849,2]
[383626520,1757045473751,-575.41,0.00026849,2]
[383626521,1757045473761,-400.0,0.00026849,2]
[383626522,1757045473771,-3097.05,0.00026849,2]
[383626523,1757045473786,-400.0,0.00026849,2]
[383626524,1757045473796,-400.0,0.00026849,2]
[383626525,1757045473806,-316.8384646,0.00026849,2]
[383626526,1757045473816,-1400.9227361,0.00026896,2]
[383626527,1757045473827,-500.0,0.00026914,14]
[383626528,1757045473837,-3991.64451425,0.00026959,6]
[383626529,1757045473847,-270.0,0.0002697,2]
[383626530,1757045473857,-400.0,0.0002699,2]
[383626531,1757045473867,-400.0,0.0002699,2]
[383626532,1757045473876,-400.0,0.0002699,2]
[383626533,1757045473887,-400.0,0.0002699,2]
[383626534,1757045473897,-263.79080081,0.0002699,2]
[383626535,1757045473908,-308.58554261,0.0002699,2]
[383626536,1757045473919,-400.0,0.0002699,2]
[383626537,1757045473929,-161.58484467,0.0002699,2]
[383626538,1757045473939,-400.0,0.0002699,2]
[383626539,1757045473949,-400.0,0.0002699,2]
[383626540,1757045473959,-287.00378216,0.0002699,2]
[383626541,1757045473969,-400.0,0.0002699,2]
[383626542,1757045473978,-400.0,0.0002699,2]
[383626543,1757045473988,-400.0,0.0002699,2]
[383626544,1757045473998,-400.0,0.0002699,2]
[383626545,1757045474010,-227.10487051,0.0002699,2]
[383626546,1757045474020,-400.0,0.0002699,2]
[383626547,1757045474030,-400.0,0.0002699,2]
[383626548,1757045474040,-400.0,0.0002699,2]
[383626549,1757045474050,-400.0,0.0002699,2]
[383626550,1757045474061,-400.0,0.0002699,2]
[383626551,1757045474071,-400.0,0.0002699,2]
[383626552,1757045474080,-211.69021685,0.0002699,2]
[383626553,1757045474090,-400.0,0.0002699,2]
[383626554,1757045474100,-262.58506579,0.0002699,2]
[383626555,1757045474110,-400.0,0.0002699,2]
[383626556,1757045474121,-400.0,0.0002699,2]
[383626557,1757045474131,-400.0,0.0002699,2]
[383626558,1757045474140,-390.79288146,0.0002699,2]
[383626559,1757045474150,-400.0,0.0002699,2]
[383626560,1757045474160,-242.85056642,0.0002699,2]
[383626561,1757045474170,-400.0,0.0002699,2]
[383626562,1757045474183,-400.0,0.0002699,2]
[383626563,1757045474194,-400.0,0.0002699,2]
[383626564,1757045474205,-201.83182671,0.0002699,2]
[383626565,1757045474216,-400.0,0.0002699,2]
[383626566,1757045474226,-434.59,0.0002699,2]
[383626567,1757045474235,-400.0,0.0002699,2]
[383626568,1757045474245,-400.0,0.0002699,2]
[383626569,1757045474256,-400.0,0.0002699,2]
[383626570,1757045474266,-400.0,0.0002699,2]
[383626571,1757045474276,-246.62522935,0.00026999,2]
[383626572,1757045474285,-883.64,0.00027,7]
[383626573,1757045474296,-4401.44,0.00027,7]
[383626574,1757045474308,-2453.45,0.00027,7]
[383626575,1757045474319,-880.28,0.00027,7]
[383626576,1757045474329,-408.91,0.00027,7]
[383626577,1757045474340,-1767.28,0.00027,7]
[383626578,1757045474352,-1767.29,0.00027,7]
[383626579,1757045474364,-397.0,0.00027,7]
[383626580,1757045474374,-372.34,0.00027086,2]
[383626581,1757045474384,-400.0,0.00027089,2]
[383626582,1757045474394,-400.0,0.00027089,2]
[383626583,1757045474404,-400.0,0.00027089,2]
[383626584,1757045474416,-310.6365989,0.00027089,2]
[383626585,1757045474426,-490.72,0.00027089,2]
[383626586,1757045474436,-400.0,0.00027089,2]
[383626587,1757045474446,-400.0,0.00027089,2]
[383626588,1757045474456,-400.0,0.00027089,2]
[383626589,1757045474468,-400.0,0.00027089,2]
[383626590,1757045474479,-169.24526361,0.00027089,2]
[383626591,1757045474491,-400.0,0.00027089,2]
[383626592,1757045474503,-1135.87,0.00027089,2]
[383626593,1757045474513,-400.0,0.00027089,2]
[383626594,1757045474525,-553.22,0.00027089,2]
[383626595,1757045474535,-400.0,0.00027089,2]
[383626596,1757045474545,-320.11299151,0.00027089,2]
[383626597,1757045474556,-400.0,0.00027089,2]
[383626598,1757045474570,-659.02,0.00027089,2]
[383626599,1757045474582,-693.59,0.00027089,2]
[383626600,1757045474592,-1013.01,0.00027089,2]
[383626601,1757045474602,-400.0,0.00027089,2]
[383626602,1757045474611,-400.0,0.00027089,2]
[383626603,1757045474622,-400.0,0.000271,2]
[383626604,1757045474632,-400.0,0.000271,2]
[383626605,1757045474642,-400.0,0.000271,2]
[383626606,1757045474652,-400.0,0.000271,2]
[383626607,1757045474663,-400.0,0.00027122,2]
[383626608,1757045474674,-400.0,0.00027122,2]
[383626609,1757045474684,-2614.78,0.00027122,2]
[383626610,1757045474692,-400.0,0.00027122,2]
[383626611,1757045474701,-400.0,0.00027122,2]
[383626612,1757045474711,-400.0,0.00027123,2]
[383626613,1757045474720,-500.0,0.00027123,2]
[383626614,1757045474730,-500.0,0.00027123,2]
[383626615,1757045474740,-500.0,0.00027123,2]
[383626616,1757045474750,-500.0,0.00027123,2]
[383626617,1757045474760,-500.0,0.00027123,2]
[383626618,1757045474770,-500.0,0.00027123,2]
[383626619,1757045474780,-500.0,0.00027123,2]
[383626620,1757045474790,-500.0,0.00027123,2]
[383626621,1757045474800,-500.0,0.00027123,2]
[383626622,1757045474810,-500.0,0.00027123,2]
[383626623,1757045474821,-400.0,0.00027123,2]
[383626624,1757045474830,-400.0,0.00027123,2]
[383626625,1757045474841,-535.42100599,0.00027123,2]
[383626626,1757045474850,-400.0,0.00027123,2]
[383626627,1757045474863,-400.0,0.00027123,2]
[383626628,1757045474881,-409.95666909,0.00027123,2]
[383626629,1757045474893,-212.80126249,0.00027123,2]
[383626630,1757045474903,-400.0,0.00027123,2]
[383626631,1757045474914,-400.0,0.00027123,2]
[383626632,1757045474928,-400.0,0.00027123,2]
[383626633,1757045474939,-408.9445702,0.00027123,2]
[383626634,1757045474949,-400.0,0.00027123,2]
[383626635,1757045474958,-577.81,0.00027123,2]
[383626636,1757045474969,-1340.23,0.00027123,2]
[383626637,1757045474979,-400.0,0.00027123,2]
[383626638,1757045474989,-828.84,0.00027123,2]
[383626639,1757045475000,-400.0,0.00027123,2]
[383626640,1757045475010,-1218.03,0.00027123,2]
[383626641,1757045475020,-701.33,0.00027123,2]
[383626642,1757045475030,-400.0,0.00027123,2]
[383626643,1757045475040,-400.0,0.00027123,2]
[383626644,1757045475050,-400.0,0.00027123,2]
[383626645,1757045475060,-444.10322854,0.00027123,2]
[383626646,1757045475070,-400.0,0.00027123,2]
[383626647,1757045475081,-424.56,0.00027123,2]
[383626648,1757045475091,-400.0,0.00027123,2]
[383626649,1757045475102,-400.0,0.00027123,2]
[383626650,1757045475112,-153.31329443,0.00027123,2]
[383626651,1757045475122,-575.41,0.00027123,2]
[383626652,1757045475132,-400.0,0.00027123,2]
[383626653,1757045475142,-3097.05,0.00027123,2]
[383626654,1757045475152,-400.0,0.00027123,2]
[383626655,1757045475163,-400.0,0.00027123,2]
[383626656,1757045475173,-965.11400696,0.00027175,2]
[383626657,1757045475183,-152.0,0.00027182,7]
[383626658,1757045475194,-226.03441064,0.00027182,5]
[383626659,1757045475204,-350.0,0.00027185,7]
[383626660,1757045475214,-158.0,0.00027185,7]
[383626661,1757045475224,-500.0,0.00027188,14]
[383626662,1757045475235,-400.0,0.00027264,2]
[383626663,1757045475245,-400.0,0.00027264,2]
[383626664,1757045475255,-400.0,0.00027264,2]
[383626665,1757045475265,-400.0,0.00027264,2]
[383626666,1757045475275,-189.49890244,0.00027264,2]
[383626667,1757045475286,-400.0,0.00027264,2]
[383626668,1757045475296,-279.0857912,0.00027264,2]
[383626669,1757045475307,-307.24624902,0.00027264,2]
[383626670,1757045475317,-332.85309467,0.00027264,2]
[383626671,1757045475327,-400.0,0.00027264,2]
[383626672,1757045475337,-259.74855416,0.00027264,2]
[383626673,1757045475347,-400.0,0.00027264,2]
[383626674,1757045475358,-400.0,0.00027264,2]
[383626675,1757045475369,-195.88696605,0.00027264,2]
[383626676,1757045475381,-400.0,0.00027264,2]
[383626677,1757045475392,-341.79180892,0.00027264,2]
[383626678,1757045475403,-400.0,0.00027264,2]
[383626679,1757045475414,-400.0,0.00027264,2]
[383626680,1757045475426,-400.0,0.00027264,2]
[383626681,1757045475436,-400.0,0.00027264,2]
[383626682,1757045475445,-231.98021541,0.00027264,2]
[383626683,1757045475455,-400.0,0.00027264,2]
[383626684,1757045475465,-400.0,0.00027264,2]
[383626685,1757045475475,-400.0,0.00027264,2]
[383626686,1757045475484,-230.69493195,0.00027264,2]
[383626687,1757045475494,-400.0,0.00027264,2]
[383626688,1757045475503,-434.59,0.00027264,2]
[383626689,1757045475513,-400.0,0.00027264,2]
[383626690,1757045475523,-247.3330255,0.00027264,2]
[383626691,1757045475534,-407.83132998,0.00027264,2]
[383626692,1757045475546,-400.0,0.00027264,2]
[383626693,1757045475557,-163.95,0.00027285,2]
[383626694,1757045475576,-580.49719826,0.00027353,2]
[383626695,1757045475588,-500.0,0.00027353,2]
[383626696,1757045475599,-150.0,0.00027361,2]
[383626697,1757045475610,-400.0,0.00027363,2]
[383626698,1757045475622,-186.44418175,0.00027363,2]
[383626699,1757045475633,-400.0,0.00027363,2]
[383626700,1757045475644,-490.72,0.00027363,2]
[383626701,1757045475656,-400.0,0.00027363,2]
[383626702,1757045475666,-400.0,0.00027363,2]
[383626703,1757045475676,-400.0,0.00027363,2]
[383626704,1757045475690,-400.0,0.00027363,2]
[383626705,1757045475700,-340.7054462,0.00027363,2]
[383626706,1757045475711,-1135.87,0.00027363,2]
[383626707,1757045475721,-251.2126628,0.00027363,2]
[383626708,1757045475741,-553.22,0.00027363,2]
[383626709,1757045475751,-489.59824613,0.00027363,2]
[383626710,1757045475762,-400.0,0.00027363,2]
[383626711,1757045475772,-659.02,0.00027363,2]
[383626712,1757045475782,-693.59,0.00027363,2]
[383626713,1757045475792,-1013.01,0.00027363,2]
[383626714,1757045475803,-400.0,0.00027363,2]
[383626715,1757045475814,-400.0,0.00027363,2]
[383626716,1757045475825,-434.00288348,0.00027374,2]
[383626717,1757045475836,-400.0,0.00027374,2]
[383626718,1757045475846,-400.0,0.00027374,2]
[383626719,1757045475856,-400.0,0.00027374,2]
[383626720,1757045475869,-1411.4182121,0.00027378,2]
[383626721,1757045475879,-4292.82302059,0.0002739,7]
[383626722,1757045475890,-494.82236467,0.00027396,2]
[383626723,1757045475901,-400.0,0.00027396,2]
[383626724,1757045475912,-2614.78,0.00027396,2]
[383626725,1757045475922,-269.03449203,0.00027396,2]
[383626726,1757045475932,-400.0,0.00027396,2]
[383626727,1757045475942,-400.0,0.00027397,2]
[383626728,1757045475952,-500.0,0.00027397,2]
[383626729,1757045475962,-400.0,0.00027397,2]
[383626730,1757045475972,-400.0,0.00027397,2]
[383626731,1757045475982,-400.0,0.00027397,2]
[383626732,1757045475992,-400.0,0.00027397,2]
[383626733,1757045476171,-410.4127379,0.00027397,2]
[383626734,1757045476199,-400.0,0.00027397,2]
[383626735,1757045476209,-400.0,0.00027397,2]
[383626736,1757045476218,-400.0,0.00027397,2]
[383626737,1757045476228,-577.81,0.00027397,2]
[383626738,1757045476238,-1340.23,0.00027397,2]
[383626739,1757045476247,-400.0,0.00027397,2]
[383626740,1757045476257,-828.84,0.00027397,2]
[383626741,1757045476267,-400.0,0.00027397,2]
[383626742,1757045476276,-1218.03,0.00027397,2]
[383626743,1757045476287,-701.33,0.00027397,2]
[383626744,1757045476301,-400.0,0.00027397,2]
[383626745,1757045476312,-477.16221265,0.00027397,2]
[383626746,1757045476323,-1000.0,0.00027397,2]
[383626747,1757045476332,-1000.0,0.00027397,2]
[383626748,1757045476342,-1000.0,0.00027397,2]
[383626749,1757045476352,-1000.0,0.00027397,2]
[383626750,1757045476362,-1000.0,0.00027397,2]
[383626751,1757045476373,-1000.0,0.00027397,2]
[383626752,1757045476383,-1000.0,0.00027397,2]
[383626753,1757045476394,-895.72248689,0.00027397,2]
[383626754,1757045476404,-400.0,0.00027397,2]
[383626755,1757045476414,-150.0,0.00027397,14]
[383626756,1757045476424,-400.0,0.00027397,2]
[383626757,1757045476434,-400.0,0.00027397,2]
[383626758,1757045476444,-400.0,0.00027397,2]
[383626759,1757045476453,-424.56,0.00027397,2]
[383626760,1757045476463,-400.0,0.00027397,2]
[383626761,1757045476472,-400.0,0.00027397,2]
[383626762,1757045476481,-575.41,0.00027397,2]
[383626763,1757045476491,-400.0,0.00027397,2]
[383626764,1757045476501,-3097.05,0.00027397,2]
[383626765,1757045476511,-400.0,0.00027397,2]
[383626766,1757045476521,-400.0,0.00027397,2]
[383626767,1757045476532,-578.05023943,0.00027397,2]
[383626768,1757045476542,-300.0,0.00027397,2]
[383626769,1757045476552,-150.0,0.00027397,5]
[383626770,1757045476565,-191.34,0.00027425,30]
[383626771,1757045476577,-183.02023196,0.00027452,2]
[383626772,1757045476587,-500.0,0.00027462,14]
[383626773,1757045476597,-973.24626,0.000275,2]
[383626774,1757045476608,-400.0,0.00027538,2]
[383626775,1757045476618,-400.0,0.00027538,2]
[383626776,1757045476629,-400.0,0.00027538,2]
[383626777,1757045476640,-400.0,0.00027538,2]
[383626778,1757045476650,-400.0,0.00027538,2]
[383626779,1757045476660,-400.0,0.00027538,2]
[383626780,1757045476670,-198.4460463,0.00027538,2]
[383626781,1757045476680,-400.0,0.00027538,2]
[383626782,1757045476691,-400.0,0.00027538,2]
[383626783,1757045476700,-400.0,0.00027538,2]
[383626784,1757045476709,-408.5141268,0.00027538,2]
[383626785,1757045476719,-400.0,0.00027538,2]
[383626786,1757045476729,-400.0,0.00027538,2]
[383626787,1757045476739,-513.29646677,0.00027538,2]
[383626788,1757045476749,-444.18064307,0.00027538,2]
[383626789,1757045476759,-400.0,0.00027538,2]
[383626790,1757045476769,-298.04443556,0.00027538,2]
[383626791,1757045476779,-434.59,0.00027538,2]
[383626792,1757045476788,-400.0,0.00027538,2]
[383626793,1757045476798,-400.0,0.00027538,2]
[383626794,1757045476808,-252.24,0.00027637,2]
[383626795,1757045476818,-400.0,0.00027637,2]
[383626796,1757045476828,-490.72,0.00027637,2]
[383626797,1757045476837,-400.0,0.00027637,2]
[383626798,1757045476846,-400.0,0.00027637,2]
[383626799,1757045476856,-400.0,0.00027637,2]
[383626800,1757045476866,-286.8877613,0.00027637,2]
[383626801,1757045476876,-1135.87,0.00027637,2]
[383626802,1757045476886,-553.22,0.00027637,2]
[383626803,1757045476896,-400.0,0.00027637,2]
[383626804,1757045476905,-659.02,0.00027637,2]
[383626805,1757045476915,-693.59,0.00027637,2]
[383626806,1757045476925,-1013.01,0.00027637,2]
[383626807,1757045476935,-400.0,0.00027637,2]
[383626808,1757045476946,-400.0,0.00027637,2]
[383626809,1757045476955,-400.0,0.00027648,2]
[383626810,1757045476965,-532.29738103,0.00027648,2]
[383626811,1757045476975,-400.0,0.00027648,2]
[383626812,1757045476984,-400.0,0.0002767,2]
[383626813,1757045476994,-2614.78,0.0002767,2]
[383626814,1757045477003,-400.0,0.0002767,2]
[383626815,1757045477013,-150.0,0.00027671,14]
[383626816,1757045477022,-285.99764332,0.00027671,2]
[383626817,1757045477032,-500.0,0.00027671,2]
[383626818,1757045477042,-221.8813254,0.00027671,2]
[383626819,1757045477052,-414.03449234,0.00027671,2]
[383626820,1757045477061,-176.4610731,0.00027671,2]
[383626821,1757045477071,-330.70688208,0.00027671,2]
[383626822,1757045477081,-400.0,0.00027671,2]
[383626823,1757045477091,-400.0,0.00027671,2]
[383626824,1757045477101,-400.0,0.00027671,2]
[383626825,1757045477111,-577.81,0.00027671,2]
[383626826,1757045477121,-1340.23,0.00027671,2]
[383626827,1757045477130,-400.0,0.00027671,2]
[383626828,1757045477139,-828.84,0.00027671,2]
[383626829,1757045477149,-400.0,0.00027671,2]
[383626830,1757045477159,-1218.03,0.00027671,2]
[383626831,1757045477168,-701.33,0.00027671,2]
[383626832,1757045477178,-400.0,0.00027671,2]
[383626833,1757045477187,-400.0,0.00027671,2]
[383626834,1757045477198,-400.0,0.00027671,2]
[383626835,1757045477207,-400.0,0.00027671,2]
[383626836,1757045477217,-424.56,0.00027671,2]
[383626837,1757045477226,-400.0,0.00027671,2]
[383626838,1757045477236,-400.0,0.00027671,2]
[383626839,1757045477245,-575.41,0.00027671,2]
[383626840,1757045477255,-3097.05,0.00027671,2]
[383626841,1757045477264,-209.24,0.00027671,2]
[383626842,1757045477274,-400.0,0.00027671,2]
[383626843,1757045477286,-397.0,0.00027671,14]
[383626844,1757045477296,-500.0,0.00027736,14]
[383626845,1757045477306,-151.0,0.0002779,2]
[383626846,1757045477315,-500.0,0.00027799,2]
[383626847,1757045477325,-85850.15,0.000278,7]
[383626848,1757045477334,-169.90727582,0.00027812,2]
[383626849,1757045477344,-400.0,0.00027812,2]
[383626850,1757045477353,-400.0,0.00027812,2]
[383626851,1757045477363,-400.0,0.00027812,2]
[383626852,1757045477372,-400.0,0.00027812,2]
[383626853,1757045477381,-541.81745446,0.00027812,2]
[383626854,1757045477390,-400.0,0.00027812,2]
[383626855,1757045477399,-219.14058333,0.00027812,2]
[383626856,1757045477408,-400.0,0.00027812,2]
[383626857,1757045477418,-400.0,0.00027812,2]
[383626858,1757045477426,-400.0,0.00027812,2]
[383626859,1757045477434,-400.0,0.00027812,2]
[383626860,1757045477443,-434.59,0.00027812,2]
[383626861,1757045477451,-400.0,0.00027812,2]
[383626862,1757045477459,-230.38282595,0.00027812,2]